[Event "44th Chess Olympiad Open 2022"]
[Site "Chennai"]
[Date "2022.08.08"]
[Round "10.77"]
[White "Mathurin, Nathaniel"]
[Black "Morgan, Jamie"]
[Result "1-0"]
[WhiteElo "1722"]
[BlackElo "1753"]
[Annotator "NA RC"]
[PlyCount "93"]
[EventDate "2022.??.??"]
[TimeControl "60"]

1. Nf3 {[%emt 0:00:03]} c5 {[%emt 0:00:06]} 2. g3 {[%emt 0:00:05]} Nc6 {
[%emt 0:00:21]} 3. d4 {[%emt 0:00:13]} cxd4 {[%emt 0:04:50]} 4. Nxd4 {[%emt 0:
00:00]} Nf6 {[%emt 0:01:04]} 5. c4 {[%emt 0:01:37]} e6 {[%emt 0:02:17]} 6. Bg2
{[%emt 0:00:54]} Bb4+ {[%emt 0:10:22]} 7. Bd2 {[%emt 0:00:14]} Qa5 {[%emt 0:00:
00]} 8. Nb5 {[%emt 0:02:21]} Bxd2+ {[%emt 0:07:34]} 9. Qxd2 {[%emt 0:03:51]}
Qxd2+ {[%emt 0:00:18]} 10. Kxd2 {[%emt 0:00:01]} Ke7 {[%emt 0:03:25]} 11. c5 {
[%emt 0:03:05]} b6 {[%emt 0:02:29]} 12. cxb6 {[%emt 0:03:50]} axb6 {[%emt 0:00:
00]} 13. e4 {[%emt 0:01:17]} Ba6 {[%emt 0:07:03]} 14. N1c3 {[%emt 0:09:12]}
Bxb5 {[%emt 0:07:37]} 15. Nxb5 {[%emt 0:00:01]} Ra4 {[%emt 0:01:00]} 16. Nc3 {
[%emt 0:03:14]} Rd4+ {[%emt 0:05:07]} 17. Ke2 {[%emt 0:00:01]} Rd8 {[%emt 0:00:
00]} 18. Rhd1 {[%emt 0:02:24]} d5 {[%emt 0:04:57]} 19. exd5 {[%emt 0:03:59]}
exd5 {[%emt 0:05:19]} 20. Rxd4 {[%emt 0:00:11]} Nxd4+ {[%emt 0:00:07]} 21. Kd3
{[%emt 0:00:02]} Ne6 {[%emt 0:01:20]} 22. b4 {[%emt 0:00:02]} d4 {[%emt 0:00:
00]} 23. Nd1 {[%emt 0:13:17]} Ng4 {[%emt 0:02:03]} 24. f4 {[%emt 0:06:01]} Rc8
{[%emt 0:02:54]} 25. f5 {[%emt 0:12:30]} Ng5 {[%emt 0:00:52]} 26. h4 {[%emt 0:
00:00]} Ne5+ {[%emt 0:00:33]} 27. Kxd4 {[%emt 0:00:33]} Ngf3+ {[%emt 0:00:54]}
28. Bxf3 {[%emt 0:02:13]} Nxf3+ {[%emt 0:00:06]} 29. Kd5 {[%emt 0:03:10]} f6 {
[%emt 0:01:54]} 30. Ne3 {[%emt 0:02:38]} Ne5 {[%emt 0:00:25]} 31. a4 {[%emt 0:
00:00]} Nd3 {[%emt 0:01:42]} 32. Rb1 {[%emt 0:00:46]} Rc3 {[%emt 0:01:12]} 33.
Kd4 {[%emt 0:06:13]} Ra3 {[%emt 0:00:06]} 34. Nc2 {[%emt 0:01:37]} Rxa4 {
[%emt 0:00:51]} 35. Kxd3 {[%emt 0:00:02]} Kd6 {[%emt 0:00:39]} 36. Re1 {
[%emt 0:00:44]} Kd7 {[%emt 0:02:52]} 37. Re6 {[%emt 0:00:29]} Ra6 {[%emt 0:00:
00]} 38. Kc4 {[%emt 0:00:19]} g6 {[%emt 0:05:01]} 39. Kb5 {[%emt 0:01:32]} Ra2
{[%emt 0:00:54]} 40. Rxf6 {[%emt 0:00:03]} Rxc2 {[%emt 0:00:35]} 41. fxg6 {
[%emt 0:30:02]} hxg6 {[%emt 0:30:36]} 42. Rxg6 {[%emt 0:00:02]} Kc7 {[%emt 0:
00:00]} 43. h5 {[%emt 0:00:06]} Re2 {[%emt 0:00:00]} 44. Rg7+ {[%emt 0:00:00]}
Kc8 {[%emt 0:00:00]} 45. h6 {[%emt 0:00:00]} Re5+ {[%emt 0:00:00]} 46. Ka6 {
[%emt 0:00:00]} Rh5 {[%emt 0:00:00]} 47. h7 {[%emt 0:00:00]} 1-0

[Event "44th Chess Olympiad Open 2022"]
[Site "Chennai"]
[Date "2022.08.08"]
[Round "10.78"]
[White "Strovsky, Mikhail"]
[Black "Terubea, Ronald"]
[Result "1/2-1/2"]
[WhiteElo "2158"]
[BlackElo "1742"]
[Annotator "NA RC"]
[PlyCount "88"]
[EventDate "2022.??.??"]
[TimeControl "60"]

1. e4 {[%emt 0:00:03]} d5 {[%emt 0:00:05]} 2. exd5 {[%emt 0:00:12]} Nf6 {
[%emt 0:00:07]} 3. Nc3 {[%emt 0:02:50]} Nxd5 {[%emt 0:00:38]} 4. Nxd5 {[%emt 0:
00:00]} Qxd5 {[%emt 0:01:26]} 5. Nf3 {[%emt 0:00:09]} Bg4 {[%emt 0:00:21]} 6.
Be2 {[%emt 0:00:06]} Nc6 {[%emt 0:00:19]} 7. O-O {[%emt 0:00:22]} O-O-O {
[%emt 0:00:12]} 8. d3 {[%emt 0:00:24]} e5 {[%emt 0:00:29]} 9. Re1 {[%emt 0:00:
00]} Bc5 {[%emt 0:02:17]} 10. Nxe5 {[%emt 0:15:34]} Bxe2 {[%emt 0:02:55]} 11.
Qxe2 {[%emt 0:00:15]} Nxe5 {[%emt 0:00:07]} 12. Qxe5 {[%emt 0:00:18]} Rhe8 {
[%emt 0:00:06]} 13. Qxe8 {[%emt 0:00:15]} Rxe8 {[%emt 0:00:09]} 14. Rxe8+ {
[%emt 0:00:10]} Kd7 {[%emt 0:01:09]} 15. Re2 {[%emt 0:00:29]} Qh5 {[%emt 0:00:
00]} 16. Re1 {[%emt 0:00:58]} Qh4 {[%emt 0:03:32]} 17. Be3 {[%emt 0:12:45]} Bd6
{[%emt 0:00:49]} 18. g3 {[%emt 0:01:34]} Qg4 {[%emt 0:01:24]} 19. Kg2 {[%emt 0:
00:00]} f5 {[%emt 0:05:17]} 20. f4 {[%emt 0:03:18]} h6 {[%emt 0:00:50]} 21. h3
{[%emt 0:09:27]} Qh5 {[%emt 0:00:40]} 22. Bd4 {[%emt 0:10:16]} Qf7 {[%emt 0:00:
00]} 23. c4 {[%emt 0:03:24]} g5 {[%emt 0:01:07]} 24. Be5 {[%emt 0:01:15]} gxf4
{[%emt 0:00:14]} 25. Bxd6 {[%emt 0:01:21]} cxd6 {[%emt 0:00:21]} 26. gxf4 {
[%emt 0:00:32]} Qg7+ {[%emt 0:00:21]} 27. Kf3 {[%emt 0:01:07]} Qxb2 {[%emt 0:
00:00]} 28. Rab1 {[%emt 0:00:44]} Qc3 {[%emt 0:00:39]} 29. Rxb7+ {[%emt 0:00:
00]} Kc6 {[%emt 0:00:08]} 30. Ree7 {[%emt 0:00:50]} Qxd3+ {[%emt 0:00:29]} 31.
Kf2 {[%emt 0:00:43]} Kc5 {[%emt 0:04:31]} 32. Rxa7 {[%emt 0:08:33]} Qxh3 {
[%emt 0:05:37]} 33. a4 {[%emt 0:04:11]} Qh4+ {[%emt 0:01:12]} 34. Kg2 {[%emt 0:
00:00]} Qg4+ {[%emt 0:00:29]} 35. Kh1 {[%emt 0:00:16]} Qf3+ {[%emt 0:01:07]}
36. Kg1 {[%emt 0:00:10]} Qg3+ {[%emt 0:00:50]} 37. Kh1 {[%emt 0:00:11]} h5 {
[%emt 0:00:02]} 38. a5 {[%emt 0:00:16]} Qf3+ {[%emt 0:05:25]} 39. Kg1 {[%emt 0:
00:00]} h4 {[%emt 0:04:48]} 40. a6 {[%emt 0:02:32]} h3 {[%emt 0:01:36]} 41. Rg7
{[%emt 0:30:07]} Kb6 {[%emt 0:30:31]} 42. Rgb7+ {[%emt 0:01:09]} Kc6 {[%emt 0:
00:00]} 43. Rc7+ {[%emt 0:00:25]} Kb6 {[%emt 0:00:06]} 44. Rcb7+ {[%emt 0:00:
00]} Kc6 {[%emt 0:00:18]} 1/2-1/2

[Event "44th Chess Olympiad Open 2022"]
[Site "Chennai"]
[Date "2022.08.08"]
[Round "10.78"]
[White "Nadan, Avinesh"]
[Black "Egbe, Kossi Thierry"]
[Result "0-1"]
[WhiteElo "1540"]
[BlackElo "1703"]
[Annotator "NA RC"]
[PlyCount "66"]
[EventDate "2022.??.??"]
[TimeControl "60"]

1. e4 {[%emt 0:00:16]} e6 {[%emt 0:00:45]} 2. Nf3 {[%emt 0:00:18]} d5 {[%emt 0:
00:00]} 3. exd5 {[%emt 0:02:32]} exd5 {[%emt 0:00:05]} 4. d4 {[%emt 0:00:08]}
Bd6 {[%emt 0:02:29]} 5. Nc3 {[%emt 0:01:44]} Ne7 {[%emt 0:00:22]} 6. Bd3 {
[%emt 0:00:53]} Nbc6 {[%emt 0:00:55]} 7. Nb5 {[%emt 0:01:26]} O-O {[%emt 0:00:
00]} 8. Nxd6 {[%emt 0:02:16]} Qxd6 {[%emt 0:00:11]} 9. c3 {[%emt 0:02:02]} h6 {
[%emt 0:02:07]} 10. Qc2 {[%emt 0:01:34]} a6 {[%emt 0:01:03]} 11. Bd2 {[%emt 0:
00:00]} Re8 {[%emt 0:00:23]} 12. O-O-O {[%emt 0:01:26]} b5 {[%emt 0:00:09]} 13.
Rde1 {[%emt 0:01:05]} Be6 {[%emt 0:02:23]} 14. Ne5 {[%emt 0:02:56]} b4 {
[%emt 0:00:22]} 15. f4 {[%emt 0:02:42]} bxc3 {[%emt 0:01:23]} 16. Bxc3 {
[%emt 0:00:16]} Nxe5 {[%emt 0:06:07]} 17. fxe5 {[%emt 0:02:25]} Qb6 {[%emt 0:
00:00]} 18. Qa4 {[%emt 0:05:08]} c5 {[%emt 0:04:03]} 19. dxc5 {[%emt 0:02:50]}
Qxc5 {[%emt 0:00:15]} 20. Qd4 {[%emt 0:01:11]} Qc7 {[%emt 0:00:52]} 21. Kd2 {
[%emt 0:04:19]} Nc6 {[%emt 0:00:50]} 22. Qc5 {[%emt 0:01:20]} Qb7 {[%emt 0:00:
00]} 23. Rc1 {[%emt 0:03:39]} d4 {[%emt 0:03:14]} 24. Ba5 {[%emt 0:01:08]} Nxa5
{[%emt 0:00:40]} 25. Qxa5 {[%emt 0:00:24]} Qxg2+ {[%emt 0:00:19]} 26. Be2 {
[%emt 0:02:04]} d3 {[%emt 0:01:17]} 27. Kxd3 {[%emt 0:01:49]} Bf5+ {[%emt 0:00:
00]} 28. Ke3 {[%emt 0:01:12]} Qe4+ {[%emt 0:00:24]} 29. Kf2 {[%emt 0:00:56]}
Rxe5 {[%emt 0:00:26]} 30. Qd2 {[%emt 0:00:47]} Qh4+ {[%emt 0:00:14]} 31. Kg1 {
[%emt 0:08:00]} Bh3 {[%emt 0:02:37]} 32. Rc3 {[%emt 0:03:44]} Rg5+ {[%emt 0:00:
00]} 33. Bg4 {[%emt 0:03:05]} Rxg4+ {[%emt 0:00:20]} 0-1

[Event "44th Chess Olympiad Open 2022"]
[Site "Chennai"]
[Date "2022.08.08"]
[Round "10.78"]
[White "Ballebako, Kokou Difendramakad"]
[Black "Jaiswal Prashant S"]
[Result "1/2-1/2"]
[WhiteElo "1524"]
[BlackElo "1683"]
[Annotator "NA RC"]
[PlyCount "98"]
[EventDate "2022.??.??"]
[TimeControl "60"]

1. d4 {[%emt 0:00:19]} Nf6 {[%emt 0:00:40]} 2. Bf4 {[%emt 0:00:29]} d5 {
[%emt 0:00:29]} 3. e3 {[%emt 0:00:44]} c5 {[%emt 0:02:32]} 4. c3 {[%emt 0:00:
00]} cxd4 {[%emt 0:01:47]} 5. exd4 {[%emt 0:00:42]} Bf5 {[%emt 0:05:17]} 6. Nf3
{[%emt 0:04:17]} e6 {[%emt 0:09:22]} 7. Be2 {[%emt 0:00:36]} Nbd7 {[%emt 0:00:
00]} 8. O-O {[%emt 0:00:41]} Be7 {[%emt 0:00:08]} 9. h3 {[%emt 0:03:22]} O-O {
[%emt 0:00:20]} 10. Nbd2 {[%emt 0:00:10]} Ne4 {[%emt 0:04:59]} 11. Re1 {
[%emt 0:07:27]} Ndf6 {[%emt 0:01:00]} 12. Nf1 {[%emt 0:00:52]} Bd6 {[%emt 0:00:
00]} 13. Ne5 {[%emt 0:04:34]} Nd7 {[%emt 0:08:18]} 14. Nxd7 {[%emt 0:19:32]}
Qxd7 {[%emt 0:01:48]} 15. Bxd6 {[%emt 0:00:50]} Qxd6 {[%emt 0:01:09]} 16. Ne3 {
[%emt 0:01:42]} Bg6 {[%emt 0:03:37]} 17. Rc1 {[%emt 0:06:34]} Rac8 {[%emt 0:00:
00]} 18. c4 {[%emt 0:03:46]} dxc4 {[%emt 0:03:53]} 19. Bxc4 {[%emt 0:02:15]}
Nf6 {[%emt 0:06:25]} 20. d5 {[%emt 0:07:21]} exd5 {[%emt 0:01:18]} 21. Nxd5 {
[%emt 0:01:32]} Nxd5 {[%emt 0:05:39]} 22. Qxd5 {[%emt 0:00:34]} Qxd5 {[%emt 0:
00:00]} 23. Bxd5 {[%emt 0:00:00]} Rcd8 {[%emt 0:14:59]} 24. Bxb7 {[%emt 0:00:
00]} h5 {[%emt 0:01:20]} 25. Be4 {[%emt 0:04:24]} Bxe4 {[%emt 0:00:33]} 26.
Rxe4 {[%emt 0:01:34]} Rd2 {[%emt 0:00:18]} 27. Re7 {[%emt 0:01:18]} Rxb2 {
[%emt 0:01:13]} 28. Rxa7 {[%emt 0:00:11]} Rbb8 {[%emt 0:03:29]} 29. a4 {
[%emt 0:01:58]} Ra8 {[%emt 0:00:45]} 30. Rxa8 {[%emt 0:00:10]} Rxa8 {[%emt 0:
00:00]} 31. Ra1 {[%emt 0:00:06]} Ra5 {[%emt 0:02:23]} 32. Kf1 {[%emt 0:01:17]}
Kf8 {[%emt 0:00:08]} 33. Ke2 {[%emt 0:00:08]} Ke7 {[%emt 0:00:16]} 34. Kd3 {
[%emt 0:00:06]} Kd6 {[%emt 0:00:25]} 35. Kc4 {[%emt 0:00:12]} Kc6 {[%emt 0:00:
00]} 36. Kb4 {[%emt 0:00:12]} Re5 {[%emt 0:01:14]} 37. a5 {[%emt 0:01:57]} Re4+
{[%emt 0:01:39]} 38. Kc3 {[%emt 0:00:18]} Kb7 {[%emt 0:00:19]} 39. Kd3 {
[%emt 0:00:44]} Re6 {[%emt 0:01:06]} 40. g4 {[%emt 0:01:11]} hxg4 {[%emt 0:00:
00]} 41. hxg4 {[%emt 0:30:11]} Ka6 {[%emt 0:30:29]} 42. f4 {[%emt 0:01:45]} g6
{[%emt 0:03:01]} 43. f5 {[%emt 0:01:02]} gxf5 {[%emt 0:00:24]} 44. gxf5 {
[%emt 0:00:03]} Re5 {[%emt 0:01:01]} 45. Rf1 {[%emt 0:00:49]} f6 {[%emt 0:00:
00]} 46. Ra1 {[%emt 0:02:37]} Rxf5 {[%emt 0:02:27]} 47. Ke4 {[%emt 0:00:34]}
Rf2 {[%emt 0:04:00]} 48. Ke3 {[%emt 0:00:11]} Rf5 {[%emt 0:00:00]} 49. Ke4 {
[%emt 0:00:00]} Rf2 {[%emt 0:00:00]} 1/2-1/2

[Event "44th Chess Olympiad Open 2022"]
[Site "Chennai"]
[Date "2022.08.08"]
[Round "10.78"]
[White "Prakash, Prashil"]
[Black "Tchouka, Yakini"]
[Result "1-0"]
[WhiteElo "1514"]
[BlackElo "1934"]
[Annotator "NA RC"]
[PlyCount "79"]
[EventDate "2022.??.??"]
[TimeControl "60"]

1. d4 {[%emt 0:00:19]} Nf6 {[%emt 0:00:09]} 2. Nf3 {[%emt 0:00:30]} e6 {
[%emt 0:00:26]} 3. Bg5 {[%emt 0:03:11]} h6 {[%emt 0:00:22]} 4. Bf4 {[%emt 0:00:
00]} b6 {[%emt 0:00:26]} 5. h3 {[%emt 0:00:50]} Bb7 {[%emt 0:00:05]} 6. e3 {
[%emt 0:01:17]} d6 {[%emt 0:00:50]} 7. Bd3 {[%emt 0:01:33]} Nbd7 {[%emt 0:00:
00]} 8. Nbd2 {[%emt 0:00:52]} Be7 {[%emt 0:00:44]} 9. Qe2 {[%emt 0:00:32]} c5 {
[%emt 0:01:37]} 10. c3 {[%emt 0:00:35]} O-O {[%emt 0:07:41]} 11. O-O {[%emt 0:
00:00]} Re8 {[%emt 0:01:07]} 12. Nc4 {[%emt 0:03:42]} Qc7 {[%emt 0:01:13]} 13.
Rfe1 {[%emt 0:01:32]} b5 {[%emt 0:00:27]} 14. Ncd2 {[%emt 0:01:40]} a6 {
[%emt 0:00:40]} 15. Rac1 {[%emt 0:03:53]} Qc6 {[%emt 0:01:20]} 16. e4 {[%emt 0:
00:00]} c4 {[%emt 0:04:28]} 17. Bb1 {[%emt 0:00:28]} Nf8 {[%emt 0:06:09]} 18.
e5 {[%emt 0:07:00]} dxe5 {[%emt 0:00:11]} 19. dxe5 {[%emt 0:00:31]} N6d7 {
[%emt 0:14:07]} 20. Be4 {[%emt 0:05:30]} Qc7 {[%emt 0:00:41]} 21. Bxb7 {
[%emt 0:00:42]} Qxb7 {[%emt 0:00:45]} 22. Nd4 {[%emt 0:02:01]} Nc5 {[%emt 0:00:
00]} 23. Ne4 {[%emt 0:26:41]} Nd3 {[%emt 0:00:37]} 24. Qg4 {[%emt 0:06:05]} Ng6
{[%emt 0:02:36]} 25. Bxh6 {[%emt 0:18:32]} gxh6 {[%emt 0:01:30]} 26. Nxe6 {
[%emt 0:05:10]} Kh7 {[%emt 0:00:33]} 27. Nd4 {[%emt 0:01:37]} Nxe1 {[%emt 0:00:
00]} 28. Rxe1 {[%emt 0:00:11]} Qd5 {[%emt 0:14:14]} 29. Qf5 {[%emt 0:02:23]}
Kg7 {[%emt 0:03:49]} 30. Nf6 {[%emt 0:00:55]} Bxf6 {[%emt 0:02:13]} 31. exf6+ {
[%emt 0:00:11]} Kh7 {[%emt 0:00:57]} 32. Qxd5 {[%emt 0:00:07]} Rxe1+ {[%emt 0:
00:00]} 33. Kh2 {[%emt 0:00:12]} Ra7 {[%emt 0:00:59]} 34. Nf5 {[%emt 0:00:29]}
Re5 {[%emt 0:01:12]} 35. Qd4 {[%emt 0:00:12]} Rb7 {[%emt 0:00:41]} 36. g4 {
[%emt 0:00:25]} Rc7 {[%emt 0:01:09]} 37. Qd2 {[%emt 0:00:33]} Rxf5 {[%emt 0:00:
00]} 38. gxf5 {[%emt 0:00:20]} Ne5 {[%emt 0:04:26]} 39. Qf4 {[%emt 0:00:40]}
Rc5 {[%emt 0:00:14]} 40. Qg3 {[%emt 0:00:46]} 1-0

[Event "44th Chess Olympiad Open 2022"]
[Site "Chennai"]
[Date "2022.08.08"]
[Round "10.79"]
[White "Cisse, Amadou Lamine"]
[Black "Shaw, Clifford"]
[Result "0-1"]
[WhiteElo "2005"]
[BlackElo "1615"]
[Annotator "NA RC"]
[PlyCount "66"]
[EventDate "2022.??.??"]
[TimeControl "60"]

1. d4 {[%emt 0:00:04]} e6 {[%emt 0:00:01]} 2. e3 {[%emt 0:00:47]} f5 {[%emt 0:
00:00]} 3. c4 {[%emt 0:00:45]} Nf6 {[%emt 0:00:03]} 4. Nc3 {[%emt 0:00:27]} b6
{[%emt 0:00:32]} 5. Nf3 {[%emt 0:08:05]} Bb4 {[%emt 0:00:38]} 6. Qc2 {[%emt 0:
00:00]} O-O {[%emt 0:00:49]} 7. Be2 {[%emt 0:00:33]} Ne4 {[%emt 0:02:01]} 8.
O-O {[%emt 0:01:00]} Bxc3 {[%emt 0:02:07]} 9. bxc3 {[%emt 0:00:09]} Bb7 {
[%emt 0:00:07]} 10. Rd1 {[%emt 0:03:30]} d6 {[%emt 0:02:53]} 11. a4 {[%emt 0:
00:00]} a5 {[%emt 0:03:11]} 12. Rb1 {[%emt 0:03:10]} Nd7 {[%emt 0:05:01]} 13.
Ba3 {[%emt 0:01:40]} g5 {[%emt 0:07:24]} 14. Nd2 {[%emt 0:19:06]} Ndf6 {
[%emt 0:12:13]} 15. Nf1 {[%emt 0:04:01]} g4 {[%emt 0:11:13]} 16. d5 {[%emt 0:
00:00]} e5 {[%emt 0:02:27]} 17. f3 {[%emt 0:01:46]} gxf3 {[%emt 0:01:21]} 18.
gxf3 {[%emt 0:00:07]} Kh8 {[%emt 0:02:41]} 19. Bd3 {[%emt 0:03:30]} Rg8+ {
[%emt 0:07:22]} 20. Kh1 {[%emt 0:01:04]} Ng5 {[%emt 0:04:07]} 21. Bxf5 {
[%emt 0:05:39]} Nxf3 {[%emt 0:00:36]} 22. Ng3 {[%emt 0:00:24]} Ng4 {[%emt 0:00:
00]} 23. Bxg4 {[%emt 0:03:43]} Rxg4 {[%emt 0:00:04]} 24. Qf5 {[%emt 0:01:54]}
Nxh2 {[%emt 0:01:10]} 25. Rb2 {[%emt 0:04:30]} Bc8 {[%emt 0:03:32]} 26. Qf2 {
[%emt 0:07:45]} Rh4 {[%emt 0:01:39]} 27. Kg1 {[%emt 0:05:59]} Bg4 {[%emt 0:00:
00]} 28. Rdd2 {[%emt 0:01:35]} Nf3+ {[%emt 0:02:00]} 29. Kf1 {[%emt 0:00:01]}
Rh2 {[%emt 0:01:15]} 30. Qxh2 {[%emt 0:00:02]} Nxh2+ {[%emt 0:00:13]} 31. Rxh2
{[%emt 0:00:20]} Qg5 {[%emt 0:00:42]} 32. Rbf2 {[%emt 0:01:30]} Qg6 {[%emt 0:
00:00]} 33. e4 {[%emt 0:00:57]} h5 {[%emt 0:06:17]} 0-1

[Event "44th Chess Olympiad Open 2022"]
[Site "Chennai"]
[Date "2022.08.08"]
[Round "10.79"]
[White "Young, Christopher"]
[Black "Lesbros Bernard"]
[Result "1-0"]
[WhiteElo "1990"]
[BlackElo "1865"]
[Annotator "NA RC"]
[PlyCount "78"]
[EventDate "2022.??.??"]
[TimeControl "60"]

1. d4 {[%emt 0:00:03]} Nf6 {[%emt 0:00:13]} 2. c4 {[%emt 0:00:12]} g6 {[%emt 0:
00:00]} 3. Nc3 {[%emt 0:00:10]} d5 {[%emt 0:00:06]} 4. Bg5 {[%emt 0:00:10]} Ne4
{[%emt 0:00:37]} 5. Bh4 {[%emt 0:00:07]} Nxc3 {[%emt 0:00:36]} 6. bxc3 {
[%emt 0:00:02]} Bg7 {[%emt 0:02:58]} 7. e3 {[%emt 0:00:45]} c5 {[%emt 0:04:51]}
8. Nf3 {[%emt 0:03:47]} cxd4 {[%emt 0:07:24]} 9. cxd4 {[%emt 0:00:43]} Nc6 {
[%emt 0:01:38]} 10. Rb1 {[%emt 0:07:00]} O-O {[%emt 0:11:13]} 11. Be2 {[%emt 0:
00:00]} a6 {[%emt 0:04:21]} 12. O-O {[%emt 0:09:43]} dxc4 {[%emt 0:03:20]} 13.
a4 {[%emt 0:00:22]} Na5 {[%emt 0:16:57]} 14. Nd2 {[%emt 0:20:12]} Be6 {[%emt 0:
00:00]} 15. Qc2 {[%emt 0:14:43]} Rc8 {[%emt 0:07:23]} 16. Qc3 {[%emt 0:01:52]}
Re8 {[%emt 0:10:49]} 17. Rfc1 {[%emt 0:01:08]} Nb3 {[%emt 0:01:36]} 18. Nxb3 {
[%emt 0:03:09]} cxb3 {[%emt 0:00:12]} 19. Qb4 {[%emt 0:04:49]} Rxc1+ {[%emt 0:
00:00]} 20. Rxc1 {[%emt 0:00:06]} Qd7 {[%emt 0:01:07]} 21. h3 {[%emt 0:19:01]}
Rc8 {[%emt 0:01:19]} 22. Rb1 {[%emt 0:04:45]} h6 {[%emt 0:07:14]} 23. Bd1 {
[%emt 0:00:26]} Rc4 {[%emt 0:02:45]} 24. Qxe7 {[%emt 0:01:12]} Qxe7 {[%emt 0:
00:00]} 25. Bxe7 {[%emt 0:00:02]} b2 {[%emt 0:01:04]} 26. Ba3 {[%emt 0:00:25]}
Bf5 {[%emt 0:01:59]} 27. Rxb2 {[%emt 0:00:29]} Rc1 {[%emt 0:00:43]} 28. Rd2 {
[%emt 0:00:17]} Rb1 {[%emt 0:00:31]} 29. Kh2 {[%emt 0:01:16]} Bd7 {[%emt 0:00:
00]} 30. Bf3 {[%emt 0:01:25]} Bxa4 {[%emt 0:00:50]} 31. d5 {[%emt 0:00:07]} Bf6
{[%emt 0:00:17]} 32. d6 {[%emt 0:00:10]} Bd7 {[%emt 0:00:37]} 33. Rc2 {[%emt 0:
00:00]} Kf8 {[%emt 0:00:27]} 34. Rc7 {[%emt 0:00:22]} Ke8 {[%emt 0:00:25]} 35.
Bxb7 {[%emt 0:00:13]} Rb6 {[%emt 0:00:45]} 36. Bc8 {[%emt 0:02:31]} Bxc8 {
[%emt 0:00:29]} 37. Rxc8+ {[%emt 0:00:01]} Kd7 {[%emt 0:00:10]} 38. Rc7+ {
[%emt 0:00:44]} Ke8 {[%emt 0:00:45]} 39. g3 {[%emt 0:00:34]} Rb3 {[%emt 0:00:
00]} 1-0

[Event "44th Chess Olympiad Open 2022"]
[Site "Chennai"]
[Date "2022.08.08"]
[Round "10.79"]
[White "Wane, Al Hassane"]
[Black "Tracey, Shaun M"]
[Result "1-0"]
[WhiteElo "1750"]
[BlackElo "1650"]
[Annotator "NA RC"]
[PlyCount "105"]
[EventDate "2022.??.??"]
[TimeControl "60"]

1. e4 {[%emt 0:00:06]} d5 {[%emt 0:00:06]} 2. exd5 {[%emt 0:00:30]} Qxd5 {
[%emt 0:00:02]} 3. Nc3 {[%emt 0:00:29]} Qa5 {[%emt 0:00:04]} 4. Nf3 {[%emt 0:
00:00]} Nf6 {[%emt 0:00:05]} 5. d4 {[%emt 0:00:07]} Bf5 {[%emt 0:00:11]} 6. Bd2
{[%emt 0:02:55]} c6 {[%emt 0:00:09]} 7. Bc4 {[%emt 0:01:51]} e6 {[%emt 0:01:04]
} 8. O-O {[%emt 0:01:51]} Qc7 {[%emt 0:01:37]} 9. Ne2 {[%emt 0:00:30]} Nbd7 {
[%emt 0:02:16]} 10. Ng3 {[%emt 0:01:29]} Bg4 {[%emt 0:00:58]} 11. h3 {[%emt 0:
00:00]} Bxf3 {[%emt 0:00:41]} 12. Qxf3 {[%emt 0:00:13]} Bd6 {[%emt 0:01:48]}
13. Rae1 {[%emt 0:00:29]} O-O-O {[%emt 0:07:44]} 14. b4 {[%emt 0:02:03]} Nb6 {
[%emt 0:04:45]} 15. Bb3 {[%emt 0:02:49]} h5 {[%emt 0:21:14]} 16. h4 {[%emt 0:
00:00]} Ng4 {[%emt 0:07:32]} 17. c4 {[%emt 0:02:48]} Rd7 {[%emt 0:26:56]} 18.
a4 {[%emt 0:12:42]} Qd8 {[%emt 0:03:07]} 19. Bg5 {[%emt 0:04:05]} Be7 {[%emt 0:
00:00]} 20. Ne4 {[%emt 0:10:18]} f6 {[%emt 0:04:07]} 21. a5 {[%emt 0:11:51]}
Na8 {[%emt 0:01:25]} 22. a6 {[%emt 0:05:41]} fxg5 {[%emt 0:01:28]} 23. axb7+ {
[%emt 0:00:54]} Rxb7 {[%emt 0:00:58]} 24. c5 {[%emt 0:00:43]} Nc7 {[%emt 0:00:
00]} 25. Nxg5 {[%emt 0:10:02]} Bxg5 {[%emt 0:02:05]} 26. hxg5 {[%emt 0:00:07]}
Nd5 {[%emt 0:01:11]} 27. Rxe6 {[%emt 0:00:51]} Qc7 {[%emt 0:03:03]} 28. g3 {
[%emt 0:01:04]} Rd8 {[%emt 0:00:17]} 29. Ba4 {[%emt 0:00:36]} Qf7 {[%emt 0:00:
00]} 30. Rxc6+ {[%emt 0:00:49]} Kb8 {[%emt 0:00:15]} 31. Qxf7 {[%emt 0:00:54]}
Rxf7 {[%emt 0:00:01]} 32. Bb3 {[%emt 0:02:04]} Rfd7 {[%emt 0:02:21]} 33. b5 {
[%emt 0:01:18]} Nb4 {[%emt 0:00:20]} 34. Rg6 {[%emt 0:00:30]} Rf8 {[%emt 0:00:
00]} 35. c6 {[%emt 0:02:37]} Re7 {[%emt 0:00:09]} 36. Be6 {[%emt 0:02:38]} Kc7
{[%emt 0:02:04]} 37. f4 {[%emt 0:02:00]} Kb6 {[%emt 0:00:35]} 38. Rc1 {[%emt 0:
00:00]} Kc7 {[%emt 0:02:11]} 39. d5 {[%emt 0:01:57]} Rd8 {[%emt 0:00:04]} 40.
Rd1 {[%emt 0:02:27]} Ne3 {[%emt 0:00:07]} 41. d6+ {[%emt 0:30:53]} Rxd6 {
[%emt 0:30:02]} 42. Rxd6 {[%emt 0:00:01]} Kxd6 {[%emt 0:00:01]} 43. Bf7+ {
[%emt 0:02:41]} Kc5 {[%emt 0:00:00]} 44. Rxg7 {[%emt 0:00:00]} Ng4 {[%emt 0:00:
00]} 45. g6 {[%emt 0:00:00]} Nd3 {[%emt 0:00:00]} 46. Rg8 {[%emt 0:00:00]} Re1+
{[%emt 0:00:00]} 47. Kg2 {[%emt 0:00:00]} Ndf2 {[%emt 0:00:54]} 48. c7 {
[%emt 0:00:00]} Rh1 {[%emt 0:04:16]} 49. c8=Q+ {[%emt 0:00:00]} Kd4 {[%emt 0:
00:00]} 50. Rd8+ {[%emt 0:00:00]} Ke3 {[%emt 0:00:15]} 51. Qe6+ {[%emt 0:00:00]
} Ne4 {[%emt 0:00:11]} 52. Qb3+ {[%emt 0:00:00]} Ke2 {[%emt 0:00:15]} 53. Qd3+
{[%emt 0:00:00]} 1-0

[Event "44th Chess Olympiad Open 2022"]
[Site "Chennai"]
[Date "2022.08.08"]
[Round "10.79"]
[White "Powell, Malcolm"]
[Black "Badji, Sekou Aransbene"]
[Result "0-1"]
[WhiteElo "1218"]
[BlackElo "1732"]
[Annotator "NA RC"]
[PlyCount "56"]
[EventDate "2022.??.??"]
[TimeControl "60"]

1. Nf3 {[%emt 0:00:03]} d5 {[%emt 0:00:20]} 2. c4 {[%emt 0:00:06]} d4 {[%emt 0:
00:00]} 3. g3 {[%emt 0:01:26]} Nc6 {[%emt 0:00:24]} 4. Bg2 {[%emt 0:00:24]} e5
{[%emt 0:00:14]} 5. d3 {[%emt 0:00:05]} Nf6 {[%emt 0:00:44]} 6. O-O {[%emt 0:
00:00]} Be7 {[%emt 0:00:17]} 7. e3 {[%emt 0:00:43]} O-O {[%emt 0:00:49]} 8. Na3
{[%emt 0:01:18]} Bg4 {[%emt 0:03:00]} 9. Nc2 {[%emt 0:05:57]} Qd7 {[%emt 0:00:
00]} 10. e4 {[%emt 0:06:43]} a5 {[%emt 0:01:17]} 11. a3 {[%emt 0:03:37]} a4 {
[%emt 0:01:33]} 12. Bg5 {[%emt 0:00:51]} Qe6 {[%emt 0:04:51]} 13. Qd2 {[%emt 0:
00:00]} Na5 {[%emt 0:03:08]} 14. Rab1 {[%emt 0:05:01]} Nb3 {[%emt 0:01:26]} 15.
Qe1 {[%emt 0:00:06]} Nd7 {[%emt 0:08:00]} 16. Bxe7 {[%emt 0:01:44]} Qxe7 {
[%emt 0:04:38]} 17. Nd2 {[%emt 0:00:04]} Ndc5 {[%emt 0:01:26]} 18. Nb4 {
[%emt 0:01:40]} c6 {[%emt 0:01:54]} 19. Nxb3 {[%emt 0:03:27]} Nxb3 {[%emt 0:00:
00]} 20. Nc2 {[%emt 0:00:06]} Bh5 {[%emt 0:27:32]} 21. f3 {[%emt 0:00:37]} Bg6
{[%emt 0:04:12]} 22. Nb4 {[%emt 0:03:21]} f5 {[%emt 0:00:40]} 23. Na2 {[%emt 0:
00:00]} fxe4 {[%emt 0:00:51]} 24. fxe4 {[%emt 0:00:07]} Qg5 {[%emt 0:05:25]}
25. Rd1 {[%emt 0:14:00]} Bh5 {[%emt 0:01:04]} 26. Nc1 {[%emt 0:07:42]} Rxf1+ {
[%emt 0:01:14]} 27. Bxf1 {[%emt 0:00:09]} Bxd1 {[%emt 0:00:14]} 28. Nxb3 {
[%emt 0:00:06]} Bxb3 {[%emt 0:00:13]} 0-1